fUSD/lending_fUSD_20240720
["ID","MTS","AMOUNT","RATE_DAILY","PERIOD"]
[332720677,1721473949510,-1002.1,0.00035068,14]
[332720678,1721473949519,-1945.47,0.00035068,2]
[332720679,1721473949528,-710.86,0.00035068,14]
[332720680,1721473949537,-500.0,0.00035068,14]
[332720681,1721473949547,-893.65,0.00035068,14]
[332720682,1721473949556,-500.0,0.00035068,14]
[332720683,1721473949566,-1268.84,0.00035068,14]
[332720684,1721473949575,-500.0,0.00035068,14]
[332720685,1721473949584,-500.0,0.00035068,14]
[332720686,1721473949593,-611.35,0.00035068,14]
[332720687,1721473949603,-797.86,0.00035068,14]
[332720688,1721473949612,-500.0,0.00035068,14]
[332720689,1721473949621,-500.0,0.00035068,14]
[332720690,1721473949630,-689.07,0.00035068,14]
[332720691,1721473949639,-1114.69,0.00035068,14]
[332720692,1721473949649,-678.8,0.00035068,14]
[332720693,1721473949658,-500.0,0.00035068,14]
[332720694,1721473949667,-1166.55,0.00035068,14]
[332720695,1721473949676,-1280.72,0.00035068,14]
[332720696,1721473949685,-500.0,0.00035068,14]
[332720697,1721473949696,-576.28,0.00035068,14]
[332720698,1721473949706,-500.0,0.00035068,14]
[332720699,1721473949716,-500.0,0.00035068,14]
[332720700,1721473949727,-625.0,0.00035068,14]
[332720701,1721473949738,-870.6,0.00035068,14]
[332720702,1721473949748,-581.99506254,0.00035068,14]
[332720703,1721473949759,-500.0,0.00035068,14]
[332720704,1721473949769,-1483.13,0.00035068,14]
[332720705,1721473949778,-1651.69,0.00035068,14]
[332720706,1721473949788,-522.51,0.00035068,14]
[332720707,1721473949800,-515.23,0.00035068,14]
[332720708,1721473949809,-500.0,0.00035068,14]
[332720709,1721473949818,-386.64129884,0.00035068,14]
[332720710,1721473949828,-500.0,0.00035068,14]
[332720711,1721473949837,-1148.55,0.00035068,14]
[332720712,1721473949846,-1457.04,0.00035068,14]
[332720713,1721473949856,-712.63,0.00035068,14]
[332720714,1721473949865,-1645.43,0.00035068,14]
[332720715,1721473949874,-673.81,0.00035068,14]
[332720716,1721473949883,-500.0,0.00035068,14]
[332720717,1721473949894,-1082.56,0.00035068,14]
[332720718,1721473949905,-533.63,0.00035068,14]
[332720719,1721473949915,-500.0,0.00035068,14]
[332720720,1721473949926,-1008.36,0.00035068,14]
[332720721,1721473949935,-1547.65,0.00035068,14]
[332720722,1721473949945,-500.0,0.00035068,14]
[332720723,1721473949956,-872.26,0.00035068,14]
[332720724,1721473949967,-500.0,0.00035068,14]
[332720725,1721473949976,-500.0,0.00035068,14]
[332720726,1721473949986,-500.0,0.00035068,14]
[332720727,1721473949995,-500.0,0.00035068,14]
[332720728,1721473950005,-500.0,0.00035068,14]
[332720729,1721473950014,-842.53,0.00035068,14]
[332720730,1721473950024,-500.0,0.00035068,14]
[332720731,1721473950033,-2046.57,0.00035068,14]
[332720732,1721473950042,-293.75568,0.00035068,7]
[332720733,1721473950051,-580.79,0.00035068,14]
[332720734,1721473950060,-992.0,0.00035068,14]
[332720735,1721473950069,-736.27,0.00035068,14]
[332720736,1721473950080,-500.0,0.00035068,14]
[332720737,1721473950090,-1419.39,0.00035068,14]
[332720738,1721473950099,-500.0,0.00035068,14]
[332720739,1721473950108,-500.0,0.00035068,14]
[332720740,1721473950118,-500.0,0.00035068,14]
[332720741,1721473950126,-1178.78,0.00035068,14]
[332720742,1721473950135,-838.03,0.00035068,14]
[332720743,1721473950144,-1192.93,0.00035068,14]
[332720744,1721473950153,-823.1,0.00035068,14]
[332720745,1721473950163,-500.0,0.00035068,14]
[332720746,1721473950173,-500.0,0.00035068,14]
[332720747,1721473950182,-640.96,0.00035068,14]
[332720748,1721473950192,-500.0,0.00035068,14]
[332720749,1721473950202,-689.8,0.00035068,14]
[332720750,1721473950212,-520.83,0.00035068,14]
[332720751,1721473950221,-500.0,0.00035068,14]
[332720752,1721473950231,-2025.09,0.00035068,14]
[332720753,1721473950240,-500.0,0.00035068,14]
[332720754,1721473950248,-991.34,0.00035068,14]
[332720755,1721473950258,-500.0,0.00035068,14]
[332720756,1721473950268,-587.95,0.00035068,14]
[332720757,1721473950277,-650.56,0.00035068,14]
[332720758,1721473950286,-2486.61,0.00035068,14]
[332720759,1721473950296,-705.7,0.00035068,14]
[332720760,1721473950305,-639.9,0.00035068,14]
[332720761,1721473950314,-500.0,0.00035068,14]
[332720762,1721473950324,-874.2,0.00035068,14]
[332720763,1721473950334,-500.0,0.00035068,14]
[332720764,1721473950344,-1205.99,0.00035068,14]
[332720765,1721473950353,-500.0,0.00035068,14]
[332720766,1721473950363,-500.0,0.00035068,14]
[332720767,1721473950372,-500.0,0.00035068,14]
[332720768,1721473950382,-1623.55,0.00035068,14]
[332720769,1721473950392,-834.67,0.00035068,14]
[332720770,1721473950402,-500.0,0.00035068,14]
[332720771,1721473950411,-500.0,0.00035068,14]
[332720772,1721473950421,-500.0,0.00035068,14]
[332720773,1721473950430,-500.0,0.00035068,14]
[332720774,1721473950441,-530.46,0.00035068,14]
[332720775,1721473950451,-865.41,0.00035068,14]
[332720776,1721473950461,-1109.5,0.00035068,14]
[332720777,1721473950472,-690.07,0.00035068,14]
[332720778,1721473950482,-2619.18,0.00035068,14]
[332720779,1721473950491,-766.77,0.00035068,14]
[332720780,1721473950501,-500.0,0.00035068,14]
[332720781,1721473950511,-500.0,0.00035068,14]
[332720782,1721473950521,-500.0,0.00035068,14]
[332720783,1721473950531,-500.0,0.00035068,14]
[332720784,1721473950540,-1607.23,0.00035068,14]
[332720785,1721473950550,-1931.91,0.00035068,14]
[332720786,1721473950560,-500.0,0.00035068,14]
[332720787,1721473950570,-500.0,0.00035068,14]
[332720788,1721473950581,-957.27,0.00035068,14]
[332720789,1721473950591,-514.93,0.00035068,14]
[332720790,1721473950601,-966.14,0.00035068,14]
[332720791,1721473950612,-1547.04,0.00035068,14]
[332720792,1721473950621,-566.55,0.00035068,14]
[332720793,1721473950631,-1356.28,0.00035068,14]
[332720794,1721473950641,-6579.72,0.00035068,14]
[332720795,1721473950652,-1195.18,0.00035068,14]
[332720796,1721473950662,-500.0,0.00035068,14]
[332720797,1721473950671,-500.0,0.00035068,14]
[332720798,1721473950682,-1037.88,0.00035068,14]
[332720799,1721473950694,-301.74697135,0.00035068,14]
[332720800,1721473950704,-500.0,0.00035068,14]
[332720801,1721473950716,-559.7,0.00035068,14]
[332720802,1721473950726,-1115.76,0.00035068,14]
[332720803,1721473950735,-500.0,0.00035068,14]
[332720804,1721473950744,-17223.67,0.00035068,14]
[332720805,1721473950753,-714.83,0.00035068,14]
[332720806,1721473950762,-512.04,0.00035068,14]
[332720807,1721473950771,-500.0,0.00035068,14]
[332720808,1721473950780,-1300.89,0.00035068,14]
[332720809,1721473950789,-500.0,0.00035068,14]
[332720810,1721473950803,-1753.8,0.00035068,14]
[332720811,1721473950812,-1374.48,0.00035068,7]
[332720812,1721473950821,-500.0,0.00035068,14]
[332720813,1721473950830,-2771.16,0.00035068,14]
[332720814,1721473950841,-500.0,0.00035068,14]
[332720815,1721473950850,-1274.75,0.00035068,14]
[332720816,1721473950860,-2453.79,0.00035068,14]
[332720817,1721473950870,-764.89,0.00035068,14]
[332720818,1721473950879,-500.0,0.00035068,14]
[332720819,1721473950889,-1365.27,0.00035068,14]
[332720820,1721473950898,-727.24,0.00035068,14]
[332720821,1721473950907,-1501.34,0.00035068,14]
[332720822,1721473950917,-1132.11,0.00035068,14]
[332720823,1721473950926,-1778.34,0.00035068,14]
[332720824,1721473950935,-500.0,0.00035068,14]
[332720825,1721473950947,-500.0,0.00035068,14]
[332720826,1721473950956,-1596.48,0.00035068,14]
[332720827,1721473950966,-500.0,0.00035068,14]
[332720828,1721473950975,-1124.54,0.00035068,14]
[332720829,1721473950984,-1241.68,0.00035068,14]
[332720830,1721473950994,-926.17,0.00035068,14]
[332720831,1721473951004,-583.3,0.00035068,14]
[332720832,1721473951013,-1705.25,0.00035068,14]
[332720833,1721473951023,-924.05,0.00035068,14]
[332720834,1721473951032,-2639.29,0.00035068,14]
[332720835,1721473951041,-3033.57,0.00035068,14]
[332720836,1721473951051,-1326.69,0.00035068,14]
[332720837,1721473951060,-3842.84,0.00035068,14]
[332720838,1721473951070,-500.0,0.00035068,14]
[332720839,1721473951079,-1305.69,0.00035068,14]
[332720840,1721473951088,-649.51,0.00035068,14]
[332720841,1721473951098,-2146.27,0.00035068,14]
[332720842,1721473951107,-2311.01,0.00035068,14]
[332720843,1721473951117,-1643.82,0.00035068,14]
[332720844,1721473951126,-791.17,0.00035068,14]
[332720845,1721473951135,-823.93,0.00035068,14]
[332720846,1721473951144,-694.65,0.00035068,14]
[332720847,1721473951154,-3853.01,0.00035068,14]
[332720848,1721473951164,-500.0,0.00035068,14]
[332720849,1721473951172,-885.54,0.00035068,14]
[332720850,1721473951181,-500.0,0.00035068,14]
[332720851,1721473951192,-1165.93,0.00035068,14]
[332720852,1721473951202,-1240.13,0.00035068,14]
[332720853,1721473951212,-734.23,0.00035068,14]
[332720854,1721473951223,-500.0,0.00035068,14]
[332720855,1721473951232,-500.0,0.00035068,14]
[332720856,1721473951241,-958.73,0.00035068,14]
[332720857,1721473951251,-1274.63,0.00035068,14]
[332720858,1721473951260,-2805.87,0.00035068,14]
[332720859,1721473951269,-512.54,0.00035068,14]
[332720860,1721473951278,-1842.33,0.00035068,14]
[332720861,1721473951287,-500.0,0.00035068,14]
[332720862,1721473951296,-4449.71,0.00035068,14]
[332720863,1721473951306,-698.3,0.00035068,14]
[332720864,1721473951316,-727.9,0.00035068,14]
[332720865,1721473951326,-1861.2,0.00035068,14]
[332720866,1721473951335,-1979.67,0.00035068,14]
[332720867,1721473951345,-2783.18,0.00035068,14]
[332720868,1721473951354,-525.5,0.00035068,14]
[332720869,1721473951364,-500.0,0.00035068,14]
[332720870,1721473951373,-954.2,0.00035068,14]
[332720871,1721473951382,-3423.76,0.00035068,14]
[332720872,1721473951392,-3739.53,0.00035068,14]
[332720873,1721473951401,-1454.72,0.00035068,14]
[332720874,1721473951412,-4221.65,0.00035068,14]
[332720875,1721473951421,-562.22,0.00035068,14]
[332720876,1721473951431,-151.0,0.00035068,7]
[332720877,1721473951441,-151.0,0.00035068,7]
[332720878,1721473951450,-151.0,0.00035068,7]
[332720879,1721473951459,-151.0,0.00035068,7]
[332720880,1721473951468,-230.636278,0.00035068,7]
[332720881,1721473951478,-1866.63,0.00035068,14]
[332720882,1721473951487,-1847.67,0.00035068,14]
[332720883,1721473951497,-717.61,0.00035068,14]
[332720884,1721473951506,-500.0,0.00035068,14]
[332720885,1721473951516,-1568.4,0.00035068,14]
[332720886,1721473951526,-2361.41,0.00035068,14]
[332720887,1721473951536,-533.76,0.00035068,14]
[332720888,1721473951546,-2086.21,0.00035068,14]
[332720889,1721473951556,-531.19,0.00035068,14]
[332720890,1721473951565,-500.0,0.00035068,14]
[332720891,1721473951575,-500.0,0.00035068,14]
[332720892,1721473951584,-7679.89,0.00035068,14]
[332720893,1721473951593,-5599.81,0.00035068,14]
[332720894,1721473951603,-678.77,0.00035068,14]
[332720895,1721473951613,-500.0,0.00035068,14]
[332720896,1721473951622,-2741.18,0.00035068,14]
[332720897,1721473951631,-150.0,0.00035068,14]
[332720898,1721473951641,-10000.0,0.00035068,7]
[332720899,1721473951651,-10000.0,0.00035068,7]
[332720900,1721473951660,-500.0,0.00035068,14]
[332720901,1721473951671,-10000.0,0.00035068,7]
[332720902,1721473951681,-10000.0,0.00035068,7]
[332720903,1721473951690,-10000.0,0.00035068,7]
[332720904,1721473951700,-10000.0,0.00035068,7]
[332720905,1721473951710,-1759.46,0.00035068,14]
[332720906,1721473951719,-10000.0,0.00035068,7]
[332720907,1721473951728,-3111.41,0.00035068,14]
[332720908,1721473951738,-3706.51,0.00035068,14]
[332720909,1721473951747,-10000.0,0.00035068,7]
[332720910,1721473951756,-10000.0,0.00035068,7]
[332720911,1721473951766,-500.0,0.00035068,14]
[332720912,1721473951775,-10000.0,0.00035068,7]
[332720913,1721473951785,-10000.0,0.00035068,7]
[332720914,1721473951794,-10000.0,0.00035068,7]
[332720915,1721473951804,-1042.97,0.00035068,14]
[332720916,1721473951813,-2100.36,0.00035068,14]
[332720917,1721473951823,-500.0,0.00035068,14]
[332720918,1721473951832,-500.0,0.00035068,14]
[332720919,1721473951842,-521.11,0.00035068,14]
[332720920,1721473951851,-1119.58,0.00035068,14]
[332720921,1721473951860,-1054.38,0.00035068,14]
[332720922,1721473951870,-176.579718,0.00035068,7]
[332720923,1721473951879,-2778.17,0.00035068,14]
[332720924,1721473951889,-500.0,0.00035068,14]
[332720925,1721473951898,-1580.83,0.00035068,14]
[332720926,1721473951908,-500.0,0.00035068,14]
[332720927,1721473951919,-2896.14,0.00035068,14]
[332720928,1721473951929,-5371.08,0.00035068,14]
[332720929,1721473951939,-531.09,0.00035068,14]
[332720930,1721473951948,-1540.68,0.00035068,14]
[332720931,1721473951958,-2005.82,0.00035068,14]
[332720932,1721473951967,-862.76,0.00035068,14]
[332720933,1721473951977,-840.3,0.00035068,14]
[332720934,1721473951986,-562.41,0.00035068,14]
[332720935,1721473951996,-1249.2,0.00035068,14]
[332720936,1721473952006,-634.33,0.00035068,14]
[332720937,1721473952015,-500.0,0.00035068,14]
[332720938,1721473952025,-500.0,0.00035068,14]
[332720939,1721473952035,-216.98304939,0.00035068,14]
[332720940,1721473952044,-1570.16,0.00035068,14]
[332720941,1721473952054,-326.46601116,0.00035068,14]
[332720942,1721473952064,-1581.58,0.00035068,14]
[332720943,1721473952074,-719.82,0.00035068,14]
[332720944,1721473952084,-587.88946761,0.00035068,14]
[332720945,1721473952093,-500.0,0.00035068,14]
[332720946,1721473952103,-500.0,0.00035068,14]
[332720947,1721473952113,-1146.91,0.00035068,14]
[332720948,1721473952123,-3329.02,0.00035068,14]
[332720949,1721473952132,-853.86,0.00035068,14]
[332720950,1721473952142,-2264.07,0.00035068,14]
[332720951,1721473952152,-515.21205565,0.00035068,14]
[332720952,1721473952162,-2219.13,0.00035068,14]
[332720953,1721473952172,-500.0,0.00035068,14]
[332720954,1721473952182,-1120.96,0.00035068,14]
[332720955,1721473952192,-1902.93,0.00035068,14]
[332720956,1721473952202,-500.0,0.00035068,14]
[332720957,1721473952211,-868.34,0.00035068,14]
[332720958,1721473952222,-705.07,0.00035068,14]
[332720959,1721473952232,-3016.63,0.00035068,14]
[332720960,1721473952242,-500.0,0.00035068,14]
[332720961,1721473952252,-500.0,0.00035068,14]
[332720962,1721473952262,-346.95241527,0.00035068,14]
[332720963,1721473952271,-667.93,0.00035068,14]
[332720964,1721473952281,-1526.65,0.00035068,14]
[332720965,1721473952291,-1768.29,0.00035068,14]
[332720966,1721473952301,-500.0,0.00035068,14]
[332720967,1721473952310,-2466.45,0.00035068,14]
[332720968,1721473952320,-500.0,0.00035068,14]
[332720969,1721473952329,-1656.41,0.00035068,14]
[332720970,1721473952340,-204.80021393,0.00035068,14]
[332720971,1721473952350,-1167.22,0.00035068,14]
[332720972,1721473952360,-2366.03,0.00035068,14]
[332720973,1721473952370,-500.0,0.00035068,14]
[332720974,1721473952380,-578.52,0.00035068,14]
[332720975,1721473952390,-1218.57,0.00035068,14]
[332720976,1721473952400,-1550.98,0.00035068,14]
[332720977,1721473952410,-1548.59,0.00035068,14]
[332720978,1721473952420,-1528.37,0.00035068,14]
[332720979,1721473952430,-3673.09,0.00035068,14]
[332720980,1721473952440,-500.0,0.00035068,14]
[332720981,1721473952450,-652.12,0.00035068,14]
[332720982,1721473952460,-2277.43,0.00035068,14]
[332720983,1721473952470,-1666.71,0.00035068,14]
[332720984,1721473952480,-599.55,0.00035068,14]
[332720985,1721473952490,-6734.78,0.00035068,14]
[332720986,1721473952500,-2116.33,0.00035068,14]
[332720987,1721473952510,-1260.65,0.00035068,14]
[332720988,1721473952520,-500.0,0.00035068,14]
[332720989,1721473952530,-2036.66,0.00035068,14]
[332720990,1721473952540,-1126.85,0.00035068,14]
[332720991,1721473952550,-7985.23,0.00035068,14]
[332720992,1721473952561,-500.0,0.00035068,14]
[332720993,1721473952571,-500.0,0.00035068,14]
[332720994,1721473952582,-500.0,0.00035068,14]
[332720995,1721473952592,-12096.44,0.00035068,14]
[332720996,1721473952603,-4375.25,0.00035068,14]
[332720997,1721473952613,-3186.86,0.00035068,14]
[332720998,1721473952623,-863.68,0.00035068,14]
[332720999,1721473952633,-1788.12,0.00035068,14]
[332721000,1721473952644,-566.34,0.00035068,14]
[332721001,1721473952654,-3156.35,0.00035068,14]
[332721002,1721473952664,-1476.06,0.00035068,14]
[332721003,1721473952674,-500.0,0.00035068,14]
[332721004,1721473952684,-1444.17,0.00035068,14]
[332721005,1721473952693,-869.37,0.00035068,14]
[332721006,1721473952703,-500.0,0.00035068,14]
[332721007,1721473952713,-2375.96,0.00035068,14]
[332721008,1721473952723,-1947.99,0.00035068,14]
[332721009,1721473952733,-1721.7,0.00035068,14]
[332721010,1721473952743,-500.0,0.00035068,14]
[332721011,1721473952753,-500.0,0.00035068,14]
[332721012,1721473952763,-1524.46,0.00035068,14]
[332721013,1721473952773,-500.0,0.00035068,14]
[332721014,1721473952783,-1888.96,0.00035068,14]
[332721015,1721473952796,-2153.9,0.00035068,14]
[332721016,1721473952805,-2486.1,0.00035068,14]
[332721017,1721473952815,-1505.49,0.00035068,14]
[332721018,1721473952825,-500.0,0.00035068,14]
[332721019,1721473952835,-1005.44,0.00035068,14]
[332721020,1721473952845,-500.0,0.00035068,14]
[332721021,1721473952855,-500.0,0.00035068,14]
[332721022,1721473952865,-640.63359547,0.00035068,14]
[332721023,1721473952875,-1923.6,0.00035068,14]
[332721024,1721473952886,-766.54,0.00035068,14]
[332721025,1721473952896,-854.35,0.00035068,14]
[332721026,1721473952907,-500.0,0.00035068,14]
[332721027,1721473952916,-1355.38,0.00035068,14]
[332721028,1721473952925,-1163.9,0.00035068,14]
[332721029,1721473952935,-1583.51,0.00035068,14]
[332721030,1721473952945,-3298.21,0.00035068,14]
[332721031,1721473952955,-519.07,0.00035068,14]
[332721032,1721473952965,-1701.96,0.00035068,14]
[332721033,1721473952976,-500.0,0.00035068,14]
[332721034,1721473952986,-2511.74,0.00035068,14]
[332721035,1721473952996,-691.57,0.00035068,14]
[332721036,1721473953006,-789.5,0.00035068,14]
[332721037,1721473953016,-1632.49,0.00035068,14]
[332721038,1721473953026,-4281.45,0.00035068,14]
[332721039,1721473953036,-1379.78,0.00035068,14]
[332721040,1721473953046,-1742.94,0.00035068,14]
[332721041,1721473953056,-1369.89,0.00035068,14]
[332721042,1721473953066,-1754.36,0.00035068,14]
[332721043,1721473953076,-1621.26,0.00035068,14]
[332721044,1721473953087,-1484.56,0.00035068,14]
[332721045,1721473953098,-856.79,0.00035068,14]
[332721046,1721473953108,-500.0,0.00035068,14]
[332721047,1721473953118,-1607.71,0.00035068,14]
[332721048,1721473953128,-2185.27,0.00035068,14]
[332721049,1721473953139,-590.54,0.00035068,14]
[332721050,1721473953149,-719.08,0.00035068,14]
[332721051,1721473953159,-5863.23,0.00035068,14]
[332721052,1721473953169,-500.0,0.00035068,14]
[332721053,1721473953179,-500.0,0.00035068,14]
[332721054,1721473953189,-3835.27,0.00035068,14]
[332721055,1721473953200,-3385.14,0.00035068,14]
[332721056,1721473953210,-1444.8,0.00035068,14]
[332721057,1721473953220,-500.0,0.00035068,14]
[332721058,1721473953230,-679.79,0.00035068,14]
[332721059,1721473953240,-1484.07,0.00035068,14]
[332721060,1721473953251,-1229.52,0.00035068,14]
[332721061,1721473953260,-716.12,0.00035068,14]
[332721062,1721473953271,-500.0,0.00035068,14]
[332721063,1721473953281,-500.0,0.00035068,14]
[332721064,1721473953291,-500.0,0.00035068,14]
[332721065,1721473953301,-2327.81,0.00035068,14]
[332721066,1721473953311,-803.16,0.00035068,14]
[332721067,1721473953321,-1585.29,0.00035068,14]
[332721068,1721473953331,-2401.57,0.00035068,14]
[332721069,1721473953341,-1125.98,0.00035068,14]
[332721070,1721473953351,-1460.64,0.00035068,14]
[332721071,1721473953360,-1431.69,0.00035068,14]
[332721072,1721473953371,-1121.56,0.00035068,14]
[332721073,1721473953380,-1827.29,0.00035068,14]
[332721074,1721473953391,-500.0,0.00035068,14]
[332721075,1721473953401,-1089.7,0.00035068,14]
[332721076,1721473953411,-816.76,0.00035068,14]
[332721077,1721473953421,-517.26,0.00035068,14]
[332721078,1721473953431,-2971.22,0.00035068,14]
[332721079,1721473953441,-500.0,0.00035068,14]
[332721080,1721473953451,-500.0,0.00035068,14]
[332721081,1721473953461,-646.96,0.00035068,2]
[332721082,1721473953471,-591.61,0.00035068,14]
[332721083,1721473953481,-793.45,0.00035068,14]
[332721084,1721473953491,-1182.38,0.00035068,14]
[332721085,1721473953501,-2723.45,0.00035068,14]
[332721086,1721473953511,-353.51255177,0.00035068,14]
[332721087,1721473953765,-531.66,0.00035068,14]
[332721088,1721473953814,-1127.59,0.00035068,14]
[332721089,1721473953825,-8394.1,0.00035068,14]
[332721090,1721473953836,-500.0,0.00035068,14]
[332721091,1721473953846,-931.4,0.00035068,14]
[332721092,1721473953856,-3205.98,0.00035068,14]
[332721093,1721473953867,-515.86,0.00035068,14]
[332721094,1721473953878,-925.89,0.00035068,14]
[332721095,1721473953888,-1969.06,0.00035068,14]
[332721096,1721473953899,-527.17,0.00035068,14]
[332721097,1721473953909,-952.34,0.00035068,14]
[332721098,1721473953919,-977.07,0.00035068,14]
[332721099,1721473953931,-1520.53,0.00035068,14]
[332721100,1721473953942,-500.0,0.00035068,14]
[332721101,1721473953955,-669.76,0.00035068,14]
[332721102,1721473953965,-805.0,0.00035068,14]
[332721103,1721473953979,-10861.79,0.00035068,14]
[332721104,1721473953989,-1000.0,0.000351,7]
[332721105,1721473954000,-2000.0,0.000352,14]
[332721106,1721473954010,-156.0,0.000352,24]
[332721107,1721473954020,-729.12,0.00035205,14]
[332721108,1721473954030,-1341.92,0.00035205,14]
[332721109,1721473954040,-305.92,0.00035235,2]
[332721110,1721473954051,-2000.0,0.000353,15]
[332721111,1721473954061,-2000.0,0.000353,15]
[332721112,1721473954071,-729.12,0.00035342,14]
[332721113,1721473954081,-1341.92,0.00035342,14]
[332721114,1721473954091,-338.18281228,0.00035342,14]
[332721115,1721473954102,-637.22,0.00035342,14]
[332721116,1721473954113,-359.09555913,0.00035342,14]
[332721117,1721473954123,-500.0,0.00035342,14]
[332721118,1721473954133,-665.42,0.00035342,14]
[332721119,1721473954143,-500.0,0.00035342,14]
[332721120,1721473954154,-180.48,0.00035342,14]
[332721121,1721473954163,-500.0,0.00035342,14]
[332721122,1721473954173,-500.0,0.00035342,14]
[332721123,1721473954183,-785.16,0.00035342,14]
[332721124,1721473954193,-500.0,0.00035342,14]
[332721125,1721473954203,-1268.79,0.00035342,14]
[332721126,1721473954213,-500.0,0.00035342,14]
[332721127,1721473954223,-500.0,0.00035342,14]
[332721128,1721473954232,-657.46,0.00035342,14]
[332721129,1721473954242,-500.0,0.00035342,14]
[332721130,1721473954251,-200.0,0.00035342,14]
[332721131,1721473954261,-656.33,0.00035342,14]
[332721132,1721473954271,-500.0,0.00035342,14]
[332721133,1721473954281,-740.41,0.00035342,14]
[332721134,1721473954291,-605.89,0.00035342,14]
[332721135,1721473954301,-500.0,0.00035342,14]
[332721136,1721473954311,-500.0,0.00035342,14]
[332721137,1721473954321,-869.42,0.00035342,14]
[332721138,1721473954331,-613.28,0.00035342,14]
[332721139,1721473954342,-500.0,0.00035342,14]
[332721140,1721473954352,-692.13,0.00035342,14]
[332721141,1721473954362,-500.0,0.00035342,14]
[332721142,1721473954375,-500.0,0.00035342,14]
[332721143,1721473954385,-500.0,0.00035342,14]
[332721144,1721473954395,-506.09,0.00035342,14]
[332721145,1721473954405,-692.91,0.00035342,14]
[332721146,1721473954415,-660.88,0.00035342,14]
[332721147,1721473954425,-626.34,0.00035342,14]
[332721148,1721473954435,-562.29,0.00035342,14]
[332721149,1721473954446,-500.0,0.00035342,14]
[332721150,1721473954456,-500.0,0.00035342,14]
[332721151,1721473954466,-500.0,0.00035342,14]
[332721152,1721473954477,-500.0,0.00035342,14]
[332721153,1721473954487,-500.0,0.00035342,14]
[332721154,1721473954497,-500.0,0.00035342,14]
[332721155,1721473954508,-649.1,0.00035342,14]
[332721156,1721473954518,-525.64,0.00035342,14]
[332721157,1721473954528,-549.87,0.00035342,14]
[332721158,1721473954539,-500.0,0.00035342,14]
[332721159,1721473954550,-500.0,0.00035342,14]
[332721160,1721473954560,-500.0,0.00035342,14]
[332721161,1721473954570,-763.4,0.00035342,14]
[332721162,1721473954581,-500.0,0.00035342,14]
[332721163,1721473954591,-500.0,0.00035342,14]
[332721164,1721473954601,-500.0,0.00035342,14]
[332721165,1721473954612,-500.0,0.00035342,14]
[332721166,1721473954622,-500.0,0.00035342,14]
[332721167,1721473954632,-1119.59,0.00035342,14]
[332721168,1721473954643,-500.0,0.00035342,14]
[332721169,1721473954654,-500.0,0.00035342,14]
[332721170,1721473954664,-192.3628304,0.00035342,14]
[332721171,1721473954674,-545.99,0.00035342,14]
[332721172,1721473954685,-500.0,0.00035342,14]
[332721173,1721473954696,-500.0,0.00035342,14]
[332721174,1721473954707,-649.25,0.00035342,14]
[332721175,1721473954717,-500.0,0.00035342,14]
[332721176,1721473954727,-500.0,0.00035342,14]